bitfinex/quotes_SOLUSD_20250907
["timestamp","ask_amount","ask_price","bid_price","bid_amount"]
[1757203200697,0.03,200.25,200.24,0.67000001]
[1757203202494,0.03,200.25,200.24,2.66925029]
[1757203206273,0.03,200.25,200.24,1.99925029]
[1757203206596,0.03,200.25,200.24,1e-08]
[1757203207204,0.03,200.25,200.24,0.67000001]
[1757203207900,0.03,200.25,200.24,2.78925029]
[1757203209692,0.03,200.25,200.24,2.11925029]
[1757203210272,0.03,200.25,200.24,2.78925029]
[1757203210476,0.03,200.25,200.24,1e-08]
[1757203210880,0.03,200.25,200.24,0.67000001]
[1757203212701,0.03,200.25,200.24,3.5792503]
[1757203222912,0.03,200.25,200.24,17.17484431]
[1757203223117,0.03,200.27,200.24,17.17484431]
[1757203223314,0.03,200.27,200.26,13.59559401]
[1757203223517,0.03,200.27,200.26,51.57559401]
[1757203223817,0.03,200.28,200.26,54.28384554]
[1757203224121,0.03,200.28,200.27,14.30559401]
[1757203224294,0.03,200.28,200.27,52.30559401]
[1757203224700,0.03,200.28,200.27,0.71]
[1757203226817,0.03,200.28,200.27,2.7084512]
[1757203228519,0.03,200.28,200.27,16.30404521]
[1757203233243,0.03,200.28,200.27,21.29730431]
[1757203237342,0.03,200.28,200.27,16.30404521]
[1757203237641,0.03,200.28,200.27,54.30404521]
[1757203237819,0.03,200.28,200.27,16.30404521]
[1757203238015,0.03,200.28,200.27,54.30404521]
[1757203238920,0.03,200.28,200.27,16.30404521]
[1757203239245,0.03,200.28,200.27,54.30404521]
[1757203242627,0.03,200.3,200.28,13.59559401]
[1757203242829,0.03,200.3,200.29,51.61559401]
[1757203243031,0.03,200.3,200.29,52.32559401]
[1757203243744,0.03,200.3,200.29,54.32344632]
[1757203248266,0.03,200.3,200.29,16.30344632]
[1757203248453,0.03,200.3,200.29,15.59344632]
[1757203248632,0.03,200.3,200.29,53.63344632]
[1757203249146,0.03,200.3,200.29,15.59344632]
[1757203249347,0.03,200.3,200.29,53.63344632]
[1757203251252,0.03,200.3,200.29,15.59344632]
[1757203251554,0.03,200.3,200.29,53.63344632]
[1757203254746,0.03,200.3,200.29,15.59344632]
[1757203254945,0.69,200.3,200.29,53.61344632]
[1757203258047,0.03,200.3,200.29,53.61344632]
[1757203258254,5.02251123,200.3,200.29,53.61344632]
[1757203258745,0.69,200.3,200.29,1.99785231]
[1757203258950,0.69,200.3,200.29,40.01785231]
[1757203260063,5.68251123,200.3,200.29,40.01785231]
[1757203260755,5.68251123,200.3,200.29,1.99785231]
[1757203264862,137.98251123,200.3,200.28,0.12]
[1757203267945,132.3,200.29,200.28,0.12]
[1757203268452,137.95276049,200.29,200.28,0.12]
[1757203273758,5.65276049,200.29,200.28,0.12]
[1757203273965,5.65276049,200.29,200.28,1e-08]
[1757203274167,5.65276049,200.29,200.27,0.12]
[1757203274168,132.3,200.28,200.27,1e-08]
[1757203274553,132.96,200.28,200.27,1e-08]
[1757203275467,26.0,200.26,200.24,1e-08]
[1757203275956,4.9937578,200.25,200.24,1e-08]
[1757203276158,5.6537578,200.25,200.24,1e-08]
[1757203277874,26.0,200.22,200.21,1e-08]
[1757203278264,26.66,200.22,200.21,1e-08]
[1757203279177,31.65450604,200.22,200.21,1e-08]
[1757203285065,4.99450604,200.22,200.21,1e-08]
[1757203285977,4.99400719,200.24,200.21,0.72000001]
[1757203287288,17.50553424,200.28,200.21,0.72000001]
[1757203287772,18.21553424,200.28,200.21,0.72000001]
[1757203287973,43.18058317,200.28,200.21,1e-08]
[1757203288584,38.14,200.27,200.21,1e-08]
[1757203288972,0.71,200.26,200.21,1e-08]
[1757203289384,17.4781523,200.25,200.21,1e-08]
[1757203290284,0.71,200.24,200.21,1e-08]
[1757203291589,132.3,200.23,200.21,1e-08]
[1757203291887,132.3,200.22,200.21,1e-08]
[1757203293499,137.29450604,200.22,200.21,1e-08]
[1757203297499,0.71,200.24,200.21,1e-08]
[1757203297688,4.9942566,200.23,200.21,1e-08]
[1757203298599,5.7042566,200.23,200.21,1e-08]
[1757203298794,4.9942566,200.23,200.21,1e-08]
[1757203299182,5.7042566,200.23,200.21,1e-08]
[1757203299603,0.03,200.22,200.21,1e-08]
[1757203305708,5.73450604,200.22,200.21,1e-08]
[1757203306710,43.81450604,200.22,200.21,1e-08]
[1757203308805,5.02450604,200.22,200.21,0.72000001]
[1757203309313,26.03,200.22,200.21,0.72000001]
[1757203309618,0.03,200.22,200.21,0.72000001]
[1757203312292,0.03,200.22,200.21,1e-08]
[1757203314009,0.72,200.22,200.21,1e-08]
[1757203314186,0.03,200.22,200.21,1e-08]
[1757203314386,0.03,200.22,200.21,0.70000001]
[1757203314898,0.03,200.22,200.21,1e-08]
[1757203320694,0.72,200.22,200.21,1e-08]
[1757203321122,0.03,200.22,200.21,1e-08]
[1757203322122,0.72,200.22,200.21,1e-08]
[1757203322828,38.9,200.22,200.21,1e-08]
[1757203324417,43.89450604,200.22,200.21,1e-08]
[1757203328705,5.71450604,200.22,200.21,1e-08]
[1757203328899,43.89450604,200.22,200.21,1e-08]
[1757203337838,5.71450604,200.22,200.21,1e-08]
[1757203338045,43.85450604,200.22,200.21,1e-08]
[1757203340745,5.02450604,200.22,200.21,1e-08]
[1757203341043,43.16450604,200.22,200.21,1e-08]
[1757203342454,5.02450604,200.22,200.21,1e-08]
[1757203342755,43.16450604,200.22,200.21,1e-08]
[1757203345437,43.86450604,200.22,200.21,1e-08]
[1757203345845,43.86450604,200.22,200.21,0.67000001]
[1757203345846,5.02450604,200.22,200.21,0.67000001]
[1757203347959,0.03,200.22,200.21,0.67000001]
[1757203358651,0.03,200.22,200.21,2.78965007]
[1757203371472,0.03,200.22,200.21,21.37999958]
[1757203373158,0.03,200.22,200.21,21.87947513]
[1757203373357,0.03,200.25,200.24,44.5896012]
[1757203373568,0.03,200.27,200.25,13.59559401]
[1757203373866,0.03,200.3,200.29,39.59559401]
[1757203374066,0.66,200.41,200.3,13.59559401]
[1757203374265,0.66,200.41,200.3,14.28559401]
[1757203374558,0.66,200.41,200.3,16.28334654]
[1757203374759,4.99023395,200.4,200.3,16.28334654]
[1757203375366,5.65023395,200.4,200.3,16.28334654]
[1757203375573,4.99039579,200.39,200.3,21.27585777]
[1757203376373,0.66,200.41,200.3,21.27585777]
[1757203376572,0.66,200.4,200.3,21.27585777]
[1757203377787,0.66,200.4,200.3,59.43585777]
[1757203378088,5.65009191,200.4,200.3,59.43585777]
[1757203378887,4.98977096,200.41,200.3,59.43585777]
[1757203379087,0.66,200.39,200.3,59.43585777]
[1757203379766,17.46419838,200.41,200.3,54.44334654]
[1757203379971,0.69,200.34,200.3,54.44334654]
[1757203380360,0.03,200.34,200.3,54.44334654]
[1757203382590,0.03,200.34,200.3,59.43585777]
[1757203383187,0.03,200.34,200.3,54.44334654]
[1757203383399,0.03,200.34,200.3,16.28334654]
[1757203383572,0.03,200.34,200.3,54.46334654]
[1757203386892,0.03,200.34,200.3,16.28334654]
[1757203387079,0.03,200.34,200.3,53.75334654]
[1757203387396,0.69,200.32,200.3,53.75334654]
[1757203388292,0.69,200.32,200.3,15.59334654]
[1757203388680,0.69,200.32,200.3,53.75334654]
[1757203389293,0.69,200.31,200.3,53.75334654]
[1757203389899,5.68226199,200.31,200.3,53.75334654]
[1757203392199,0.03,200.31,200.3,54.44334654]
[1757203399807,0.03,200.31,200.3,85.55585777]
[1757203400903,0.03,200.31,200.3,80.56334654]
[1757203401205,0.03,200.31,200.3,85.55585777]
[1757203413626,0.03,200.31,200.3,80.56334654]
[1757203414518,0.03,200.31,200.3,85.55585777]
[1757203417338,0.03,200.31,200.3,59.55585777]
[1757203417339,0.00042039,200.31,200.3,59.55585777]
[1757203420732,0.68042039,200.31,200.3,53.83334654]
[1757203421518,0.00042039,200.31,200.3,53.83334654]
[1757203423044,0.68042039,200.31,200.3,53.83334654]
[1757203423737,0.68042039,200.31,200.3,15.71334654]
[1757203423940,0.68042039,200.31,200.3,53.83334654]
[1757203428475,0.00042039,200.31,200.3,53.83334654]
[1757203429646,0.00042039,200.31,200.3,59.50585777]
[1757203434247,0.03,200.32,200.3,60.00510889]
[1757203434427,0.03,200.32,200.31,14.27559401]
[1757203434852,0.71,200.38,200.32,13.59559401]
[1757203435056,0.71,200.38,200.34,13.59559401]
[1757203435235,0.71,200.38,200.35,51.71559401]
[1757203435445,0.71,200.38,200.35,66.69649336]
[1757203438060,0.71,200.38,200.35,67.37649336]
[1757203438535,0.71,200.38,200.35,66.69649336]
[1757203438731,38.47280577,200.44,200.35,28.57649336]
[1757203438955,0.74,200.36,200.35,51.71559401]
[1757203440265,5.73101617,200.36,200.35,13.59559401]
[1757203440446,5.73101617,200.36,200.35,51.71559401]
[1757203440847,0.74,200.36,200.35,51.71559401]
[1757203442340,0.03,200.36,200.35,51.71559401]
[1757203443741,0.03,200.36,200.35,28.57649336]
[1757203443935,0.74,200.36,200.35,66.69649336]
[1757203444458,0.74,200.36,200.35,51.71559401]
[1757203444660,0.74,200.36,200.35,51.75559401]
[1757203445653,0.03,200.36,200.35,51.75559401]
[1757203446078,0.03,200.36,200.35,52.43559401]
[1757203448458,5.70025944,200.4,200.37,13.59559401]
[1757203448664,0.71,200.4,200.38,38.16]
[1757203449070,4.98983409,200.41,200.39,13.59559401]
[1757203449267,0.71,200.41,200.4,51.75559401]
[1757203449784,5.69977096,200.41,200.4,51.75559401]
[1757203451170,5.72977096,200.41,200.4,38.16]
[1757203454576,5.72977096,200.41,200.38,13.59559401]
[1757203454770,0.71,200.4,200.39,51.73559401]
[1757203457185,5.70001996,200.4,200.39,51.73559401]
[1757203457379,4.99001996,200.4,200.39,51.73559401]
[1757203457973,4.99001996,200.4,200.39,66.71574531]
[1757203459291,0.69,200.4,200.39,53.1201513]
[1757203460399,5.68001996,200.4,200.39,53.1201513]
[1757203461398,5.01977096,200.41,200.39,53.1201513]
[1757203461601,5.70977096,200.41,200.39,53.1201513]
[1757203461799,5.01977096,200.41,200.39,38.14]
[1757203461982,5.01977096,200.41,200.39,38.85]
[1757203462504,0.03,200.41,200.4,29.28574531]
[1757203463893,0.03,200.41,200.4,28.57574531]
[1757203464808,0.03,200.41,200.4,29.28574531]
[1757203470705,0.03,200.41,200.4,28.57574531]
[1757203474209,0.03,200.41,200.4,29.28574531]
[1757203481016,0.03,200.41,200.4,28.57574531]
[1757203481311,0.72,200.41,200.4,66.65574531]
[1757203481521,0.03,200.41,200.4,66.65574531]
[1757203482716,0.2,200.43,200.4,67.36574531]
[1757203482918,0.2,200.43,200.42,13.59559401]
[1757203483102,0.2,200.43,200.42,51.97559401]
[1757203483415,0.2,200.43,200.42,58.56489664]
[1757203484723,0.2,200.43,200.42,63.55441864]
[1757203485102,5.67728941,200.51,200.42,63.55441864]
[1757203485103,0.2,200.52,200.5,13.59559401]
[1757203485298,0.2,200.52,200.51,52.01559401]
[1757203485820,0.2,200.52,200.51,67.69303982]
[1757203486623,0.2,200.52,200.51,72.68032224]
[1757203488315,0.2,200.52,200.51,67.69303982]
[1757203488513,0.2,200.52,200.51,29.27303982]
[1757203488716,0.2,200.52,200.51,67.69303982]
[1757203489801,0.2,200.52,200.51,29.27303982]
[1757203490011,0.2,200.52,200.51,66.96303982]
[1757203492707,0.2,200.52,200.51,67.68303982]
[1757203496924,0.2,200.52,200.51,29.28303982]
[1757203497122,0.2,200.52,200.51,67.64303982]
[1757203497334,0.68,200.61,200.55,39.59559401]
[1757203497510,0.68,200.61,200.57,13.59559401]
[1757203497836,0.68,200.61,200.58,38.46]
[1757203498040,0.68,200.6,200.58,38.46]
[1757203498212,4.9845479,200.62,200.59,13.59559401]
[1757203498412,5.6643313,200.63,200.61,13.59559401]
[1757203498833,0.68,200.62,200.61,13.59559401]
[1757203499412,0.68,200.62,200.6,38.46]
[1757203499413,4.98479637,200.61,200.6,38.46]
[1757203499631,5.66479637,200.61,200.6,52.05559401]
[1757203500329,5.66479637,200.61,200.6,14.9644594]
[1757203504155,132.98,200.65,200.61,13.59559401]
[1757203504315,0.68,200.68,200.63,13.59559401]
[1757203504514,0.68,200.68,200.63,52.21559401]
[1757203504716,0.68,200.68,200.64,0.72]
[1757203504934,0.68,200.68,200.64,15.68147421]
[1757203505135,4.98351179,200.67,200.64,15.68147421]
[1757203505322,4.98351179,200.67,200.64,0.72]
[1757203505537,5.66351179,200.67,200.63,52.21559401]
[1757203505723,0.03,200.66,200.65,14.96147421]
[1757203505922,0.03,200.66,200.65,67.15706822]
[1757203511133,0.03,200.66,200.65,67.13706822]
[1757203513139,0.03,200.66,200.65,28.55706822]
[1757203513535,0.03,200.66,200.65,67.11706822]
[1757203515046,0.03,200.66,200.65,67.83706822]
[1757203516449,0.03,200.66,200.65,67.11706822]
[1757203517437,0.03,200.66,200.65,67.83706822]
[1757203517638,0.03,200.66,200.65,52.87559401]
[1757203517849,0.03,200.66,200.65,52.15559401]
[1757203519442,0.7,200.66,200.62,4.9828093]
[1757203519648,0.67,200.65,200.63,38.52]
[1757203520849,4.98405103,200.64,200.63,38.52]
[1757203523529,0.03,200.66,200.63,38.52]
[1757203523854,132.3,200.72,200.64,40.29559401]
[1757203524038,0.03,200.71,200.68,13.59559401]
[1757203524234,0.03,200.71,200.7,13.59559401]
[1757203525547,0.03,200.71,200.7,52.23559401]
[1757203525927,0.03,200.71,200.7,38.64]
[1757203526748,0.7,200.71,200.7,38.64]
[1757203527837,0.03,200.71,200.7,38.64]
[1757203531558,0.7,200.71,200.7,38.62]
[1757203531856,0.7,200.71,200.67,13.59559401]
[1757203531857,0.7,200.71,200.67,0.7]
[1757203532062,0.03,200.71,200.67,38.6]
[1757203532242,0.67,200.7,200.67,38.6]
[1757203533251,0.03,200.71,200.67,38.6]
[1757203533588,0.03,200.71,200.68,14.29559401]
[1757203533739,0.03,200.71,200.69,38.62]
[1757203535054,0.03,200.71,200.68,14.29559401]
[1757203535245,0.03,200.71,200.69,38.62]
[1757203535840,5.68231278,200.71,200.66,0.7]
[1757203536045,5.68231278,200.71,200.64,14.95849019]
[1757203536046,5.68231278,200.71,200.67,52.89559401]
[1757203536362,5.01231278,200.71,200.68,0.7]
[1757203536565,5.01231278,200.71,200.69,38.6]
[1757203537662,0.03,200.71,200.68,0.7]
[1757203537868,0.03,200.71,200.69,38.6]
[1757203540355,0.03,200.71,200.69,39.3]
[1757203540555,0.67,200.7,200.65,19.27765857]
[1757203540771,0.67,200.7,200.67,13.59559401]
[1757203540969,0.7,200.71,200.68,38.56]
[1757203541857,4.98256103,200.7,200.68,38.56]
[1757203542771,4.98256103,200.7,200.68,39.26]
[1757203543648,0.03,200.71,200.68,39.26]
[1757203547271,0.03,200.71,200.69,0.7]
[1757203547656,0.7,200.71,200.68,38.56]
[1757203547987,0.03,200.71,200.69,14.29559401]
[1757203548160,0.03,200.71,200.69,26.75056133]
[1757203548481,0.03,200.71,200.7,14.29559401]
[1757203548786,0.03,200.71,200.7,29.24961041]
[1757203549074,0.03,200.71,200.7,72.83217144]
[1757203551365,0.03,200.71,200.7,67.84961041]
[1757203552275,0.03,200.71,200.7,72.83217144]
[1757203553185,0.03,200.71,200.7,28.54961041]
[1757203553362,0.03,200.71,200.7,52.15559401]
[1757203553562,0.03,200.71,200.7,52.84559401]
[1757203553765,0.03,200.71,200.7,52.86559401]
[1757203555889,0.03,200.71,200.68,14.95625296]
[1757203556183,0.03,200.71,200.69,38.56]
[1757203556555,0.03,200.71,200.68,0.69]
[1757203556765,0.03,200.71,200.69,38.56]
[1757203558167,0.74,200.71,200.69,38.56]
[1757203558482,0.03,200.71,200.69,38.56]
[1757203559276,4.98256103,200.7,200.69,38.56]
[1757203559869,4.98256103,200.7,200.69,39.25]
[1757203560291,0.03,200.71,200.69,39.25]
[1757203560973,0.03,200.71,200.69,38.56]
[1757203561179,0.03,200.71,200.69,39.25]
[1757203562170,0.03,200.71,200.7,0.69]
[1757203562374,0.03,200.71,200.69,38.56]
[1757203562375,0.03,200.71,200.69,39.25]
[1757203563486,0.03,200.71,200.7,0.69]
[1757203564880,0.03,200.71,200.69,38.56]
[1757203565090,0.03,200.71,200.69,39.25]
[1757203569194,0.03,200.71,200.7,0.69]
[1757203571074,0.03,200.71,200.7,14.28559401]
[1757203571387,0.03,200.71,200.7,19.26741038]
[1757203571791,137.28125224,200.76,200.71,13.59559401]
[1757203571986,137.28125224,200.76,200.72,39.19]
[1757203572169,137.28125224,200.76,200.72,38.5]
[1757203572374,137.28125224,200.76,200.73,0.69]
[1757203572592,137.28125224,200.76,200.74,38.5]
[1757203574198,137.99125224,200.76,200.74,38.5]
[1757203574599,5.69132004,200.75,200.74,38.5]
[1757203577584,4.98132004,200.75,200.74,38.5]
[1757203579294,5.01132004,200.75,200.74,38.5]
[1757203584296,5.01132004,200.75,200.74,39.21]
[1757203586208,0.03,200.75,200.74,39.21]
[1757203595718,0.03,200.75,200.74,38.5]
[1757203596410,0.03,200.75,200.74,39.21]
[1757203597305,0.03,200.75,200.74,52.80559401]
[1757203597503,0.03,200.75,200.74,57.7871622]
[1757203597824,137.27988295,200.81,200.75,13.59559401]
[1757203598129,137.27988295,200.81,200.76,39.07]
[1757203598324,0.03,200.78,200.77,0.71]
[1757203600199,0.03,200.78,200.77,14.30559401]
[1757203604726,0.75,200.78,200.77,38.34]
[1757203606115,5.73057575,200.78,200.77,38.34]
[1757203607024,0.03,200.78,200.77,38.34]
[1757203607706,0.03,200.78,200.77,39.05]
[1757203607901,0.03,200.78,200.77,38.34]
[1757203608209,5.01057575,200.78,200.77,38.34]
[1757203611728,0.03,200.78,200.77,38.34]
[1757203619133,0.03,200.78,200.77,39.06]
[1757203620630,0.03,200.78,200.75,0.84]
[1757203620931,0.03,200.78,200.76,38.28]
[1757203621319,0.03,200.78,200.76,39.0]
[1757203623041,0.03,200.78,200.77,0.72]
[1757203624935,0.03,200.78,200.76,39.0]
[1757203627126,0.03,200.78,200.76,38.28]
[1757203627326,0.03,200.78,200.77,0.72]
[1757203628336,0.03,200.78,200.76,39.0]
[1757203628637,0.71,200.78,200.77,38.24]
[1757203629430,0.71,200.78,200.76,38.24]
[1757203629617,4.98082382,200.77,200.76,38.24]
[1757203631039,5.01057575,200.78,200.76,38.24]
[1757203631717,5.01057575,200.78,200.76,38.96]
[1757203634540,0.68,200.77,200.76,38.24]
[1757203634737,5.01057575,200.78,200.76,38.24]
[1757203634948,5.69057575,200.78,200.76,38.24]
[1757203637345,5.01057575,200.78,200.76,38.96]
[1757203638448,0.03,200.78,200.76,38.96]
[1757203638751,0.03,200.78,200.76,53.91327103]
[1757203640529,0.03,200.78,200.76,38.96]
[1757203640829,0.03,200.78,200.77,13.13054093]
[1757203643046,0.03,200.78,200.77,13.80054093]
[1757203643951,0.03,200.78,200.77,13.13054093]
[1757203645050,0.03,200.78,200.77,13.80054093]
[1757203650860,0.03,200.78,200.77,13.13054093]
[1757203651366,0.03,200.78,200.77,13.80054093]
[1757203656563,0.03,200.78,200.77,13.13054093]
[1757203658140,0.03,200.78,200.77,13.80054093]
[1757203658758,0.03,200.78,200.77,13.13054093]
[1757203660564,0.03,200.78,200.77,13.80054093]
[1757203670070,0.03,200.78,200.77,13.13054093]
[1757203670857,0.03,200.78,200.75,0.12]
[1757203670858,0.73,200.78,200.75,0.12]
[1757203671052,0.73,200.78,200.75,38.26]
[1757203671271,0.7,200.77,200.75,38.26]
[1757203672086,4.98107192,200.76,200.75,38.26]
[1757203675098,5.68107192,200.76,200.75,1e-08]
[1757203684784,4.98107192,200.76,200.75,1e-08]
[1757203684968,5.68107192,200.76,200.75,1e-08]
[1757203687094,4.98107192,200.76,200.75,1e-08]
[1757203687794,5.01107192,200.76,200.75,1e-08]
[1757203688178,5.01107192,200.76,200.75,0.70000001]
[1757203689067,5.01107192,200.76,200.75,1e-08]
[1757203695100,5.71107192,200.76,200.75,1e-08]
[1757203696204,5.01107192,200.76,200.75,1e-08]
[1757203700495,5.01107192,200.76,200.75,1e-08]
[1757203702188,5.73107192,200.76,200.75,1e-08]
[1757203703892,5.01107192,200.76,200.75,1e-08]
[1757203713201,5.01107192,200.76,200.75,38.80000001]
[1757203713406,5.01107192,200.76,200.75,53.75401641]
[1757203714609,0.03,200.76,200.75,53.75401641]
[1757203714917,0.03,200.76,200.75,67.34961042]
[1757203716398,0.03,200.76,200.75,14.95401641]
[1757203717108,0.03,200.76,200.75,1e-08]
[1757203718019,0.75,200.76,200.75,1e-08]
[1757203718922,0.03,200.76,200.75,1e-08]
[1757203720323,0.03,200.76,200.75,0.66000001]
[1757203724027,0.75,200.76,200.75,1e-08]
[1757203724327,5.73107192,200.76,200.75,1e-08]
[1757203724510,7.7253384,200.76,200.75,1e-08]
[1757203725919,7.0053384,200.76,200.75,1e-08]
[1757203726710,7.0053384,200.76,200.75,0.66000001]
[1757203726909,5.01107192,200.76,200.75,0.66000001]
[1757203727404,5.01107192,200.76,200.75,1e-08]
[1757203730812,5.01107192,200.76,200.75,0.68000001]
[1757203731206,5.01107192,200.76,200.75,1e-08]
[1757203731407,5.01107192,200.76,200.75,0.68000001]
[1757203733230,5.01107192,200.76,200.75,1e-08]
[1757203746032,5.01107192,200.76,200.75,0.68000001]
[1757203746734,7.0053384,200.77,200.75,0.68000001]
[1757203748731,7.6953384,200.77,200.75,1e-08]
[1757203749337,4.98107192,200.76,200.75,1e-08]
[1757203750631,7.0053384,200.77,200.75,1e-08]
[1757203751017,7.0053384,200.77,200.75,0.68000001]
[1757203752236,4.98107192,200.76,200.75,0.68000001]
[1757203752615,4.98107192,200.76,200.75,1e-08]
[1757203753144,4.98107192,200.76,200.75,0.68000001]
[1757203753843,4.98107192,200.76,200.75,1e-08]
[1757203754722,4.98107192,200.76,200.75,0.68000001]
[1757203755449,4.98107192,200.76,200.75,1e-08]
[1757203758128,5.01082382,200.77,200.75,1e-08]
[1757203758326,5.70082382,200.77,200.75,1e-08]
[1757203761420,0.03,200.77,200.75,0.66000001]
[1757203761948,0.03,200.77,200.75,1e-08]
[1757203762445,0.03,200.77,200.75,0.66000001]
[1757203762648,0.03,200.77,200.75,1e-08]
[1757203762852,4.98107192,200.76,200.75,1e-08]
[1757203764227,0.03,200.77,200.75,1e-08]
[1757203765225,4.98107192,200.76,200.75,1e-08]
[1757203766851,5.01082382,200.77,200.75,0.66000001]
[1757203767352,5.01082382,200.77,200.75,1e-08]
[1757203767852,5.73082382,200.77,200.75,1e-08]
[1757203771851,0.72,200.76,200.75,1e-08]
[1757203773257,5.70107192,200.76,200.75,1e-08]
[1757203774237,4.98107192,200.76,200.75,1e-08]
[1757203783340,0.72,200.76,200.75,1e-08]
[1757203783660,0.75,200.77,200.75,1e-08]
[1757203787166,4.98107192,200.76,200.75,1e-08]
[1757203788167,0.75,200.77,200.75,1e-08]
[1757203790255,4.98107192,200.76,200.75,1e-08]
[1757203792049,0.65,200.76,200.75,1e-08]
[1757203792970,132.95,200.76,200.75,1e-08]
[1757203793163,137.28107192,200.76,200.75,1e-08]
[1757203793360,137.93107192,200.76,200.75,1e-08]
[1757203794177,139.92553728,200.76,200.75,1e-08]
[1757203796776,137.93107192,200.76,200.75,1e-08]
[1757203798869,5.63107192,200.76,200.75,1e-08]
[1757203799762,7.62553728,200.76,200.75,1e-08]
[1757203800161,5.63107192,200.76,200.75,1e-08]
[1757203800875,7.62553728,200.76,200.75,1e-08]
[1757203805859,4.98107192,200.76,200.75,1e-08]
[1757203806791,5.63107192,200.76,200.75,1e-08]
[1757203807382,4.98107192,200.76,200.75,1e-08]
[1757203807683,5.01107192,200.76,200.75,1e-08]
[1757203812883,5.01107192,200.76,200.75,0.71000001]
[1757203814684,0.03,200.76,200.75,0.71000001]
[1757203818570,0.03,200.76,200.75,2.70386886]
[1757203818775,0.03,200.76,200.75,0.71000001]
[1757203820784,0.03,200.76,200.75,2.70406766]
[1757203822603,0.03,200.76,200.75,0.71000001]
[1757203831083,0.03,200.76,200.75,5.72057576]
[1757203848315,0.03,200.76,200.75,43.78057576]
[1757203848705,0.75,200.76,200.75,5.01057576]
[1757203848914,0.03,200.76,200.75,1e-08]
[1757203849221,0.03,200.76,200.75,0.71000001]
[1757203850103,0.03,200.76,200.75,52.36559402]
[1757203850302,0.03,200.76,200.75,54.35926412]
[1757203851807,0.03,200.77,200.75,54.35926412]
[1757203852002,0.03,200.77,200.76,0.71]
[1757203852402,0.03,200.77,200.76,5.7203277]
[1757203853625,0.03,200.77,200.76,43.7803277]
[1757203861148,0.03,200.77,200.76,57.37592171]
[1757203867041,0.03,200.78,200.77,13.59559401]
[1757203867224,0.03,200.78,200.77,14.30559401]
[1757203867622,0.03,200.78,200.77,16.29896605]
[1757203884554,0.03,200.78,200.77,54.33896605]
[1757203889252,0.03,200.79,200.77,54.33896605]
[1757203889448,0.03,200.79,200.77,53.62896605]
[1757203889646,0.03,200.79,200.78,14.26559401]
[1757203890172,0.03,200.79,200.78,5.72983168]
[1757203890372,0.03,200.79,200.78,43.76983168]
[1757203890542,0.75,200.79,200.78,43.76983168]
[1757203891352,5.7303277,200.79,200.78,43.76983168]
[1757203893173,5.7303277,200.79,200.78,5.72983168]
[1757203893353,0.03,200.79,200.78,43.76983168]
[1757203895074,0.03,200.79,200.78,44.43983168]
[1757203897671,0.03,200.79,200.78,58.03542569]
[1757203899272,0.03,200.79,200.78,19.99542569]
[1757203899574,0.03,200.79,200.78,58.03542569]
[1757203900072,0.03,200.79,200.78,19.99542569]
[1757203900274,0.03,200.79,200.78,58.03542569]
[1757203902362,0.03,200.8,200.79,13.59559401]
[1757203902563,0.03,200.8,200.79,14.26559401]
[1757203902969,0.03,200.8,200.79,19.99517771]
[1757203904365,0.03,200.81,200.79,19.99517771]
[1757203904567,0.03,200.81,200.8,51.63559401]
[1757203904963,0.03,200.81,200.8,66.58439437]
[1757203905581,0.75,200.81,200.8,28.54439437]
[1757203905795,0.75,200.81,200.8,66.58439437]
[1757203907381,0.03,200.81,200.8,66.58439437]